bitfinex-derivatives/quotes_BTCF0:USTF0_20210406
["timestamp","ask_amount","ask_price","bid_price","bid_amount"]
[1617699398034,4.05410821,58518.0,58517.0,0.27]
[1617699398435,4.05410821,58518.0,58514.0,0.27]
[1617699399151,0.64369854,58515.0,58514.0,0.27]
[1617699400336,1.07253411,58515.0,58514.0,0.27]
[1617699400737,0.64369854,58515.0,58514.0,0.27]
[1617699401738,1.07214155,58515.0,58514.0,0.27]
[1617699402136,1.31437385,58515.0,58514.0,0.27]
[1617699402536,1.07214155,58515.0,58514.0,0.27]
[1617699403838,1.31435712,58515.0,58514.0,0.27]
[1617699404338,0.64369854,58515.0,58514.0,0.27]
[1617699404739,0.88588992,58515.0,58514.0,0.27]
[1617699405240,0.29259911,58515.0,58514.0,0.57155631]
[1617699405640,0.29259911,58515.0,58514.0,1.07674072]
[1617699406166,0.00985079,58515.0,58514.0,1.07674072]
[1617699406342,0.00985079,58515.0,58514.0,3.62494072]
[1617699406544,0.009852,58516.0,58514.0,3.62494072]
[1617699406943,0.009852,58516.0,58515.0,0.72392056]
[1617699407342,0.009852,58516.0,58515.0,0.99392056]
[1617699409344,0.00985862,58517.0,58515.0,0.99392056]
[1617699409845,0.00985862,58517.0,58516.0,0.72416142]
[1617699410448,0.00985862,58517.0,58516.0,0.99416142]
[1617699411251,0.11711674,58518.0,58516.0,0.99416142]
[1617699411548,0.00985834,58517.0,58516.0,0.99416142]
[1617699412349,0.29306233,58517.0,58516.0,0.99416142]
[1617699414254,0.10725655,58518.0,58516.0,0.27]
[1617699414650,0.10725655,58518.0,58517.0,0.36217264]
[1617699414863,0.10725655,58518.0,58517.0,0.66398317]
[1617699414864,0.45886424,58518.0,58517.0,0.66398317]
[1617699415049,0.45886424,58518.0,58517.0,0.93398317]
[1617699415319,0.45886424,58518.0,58517.0,0.66398317]
[1617699415550,0.45886424,58518.0,58517.0,0.57181053]
[1617699416451,0.45886424,58518.0,58517.0,0.3217]
[1617699416750,0.45886424,58518.0,58517.0,0.27]
[1617699417252,0.58550424,58518.0,58514.0,0.27]
[1617699417451,0.58550424,58518.0,58517.0,0.27]
[1617699417851,0.58550424,58518.0,58515.0,0.0513]
[1617699417852,0.23389655,58518.0,58515.0,0.27]
[1617699418051,0.23389655,58518.0,58516.0,0.27]
[1617699418251,0.88802202,58518.0,58516.0,0.27]
[1617699418452,0.88802202,58518.0,58514.0,0.27]
[1617699418653,0.35149727,58517.0,58515.0,0.36225802]
[1617699419052,0.35149727,58517.0,58516.0,0.27]
[1617699419253,0.35149727,58517.0,58516.0,0.63224866]
[1617699419653,0.35149727,58517.0,58516.0,0.36224866]
[1617699419957,0.35149727,58517.0,58516.0,3.56704866]
[1617699420153,0.45895689,58518.0,58516.0,3.56704866]
[1617699420671,0.45895689,58518.0,58517.0,0.36224004]
[1617699420672,0.10725655,58518.0,58517.0,0.36224004]
[1617699421054,0.45879496,58518.0,58517.0,0.27]
[1617699421754,0.45879496,58518.0,58517.0,0.3215]
[1617699421955,0.45879496,58518.0,58517.0,0.68374251]
[1617699422955,0.45879496,58518.0,58517.0,0.63224251]
[1617699423155,0.10725655,58518.0,58517.0,0.27]
[1617699423655,0.45910857,58518.0,58517.0,0.63252413]
[1617699423854,0.45910857,58518.0,58517.0,0.68352413]
[1617699424057,0.45910857,58518.0,58517.0,0.63252413]
[1617699425256,0.45910857,58518.0,58517.0,0.68442413]
[1617699425658,0.45910857,58518.0,58517.0,0.63252413]
[1617699430859,0.70127632,58518.0,58517.0,0.63252413]
[1617699431460,0.70127632,58518.0,58517.0,0.68302413]
[1617699431661,0.70127632,58518.0,58517.0,0.63252413]
[1617699435675,0.3494243,58518.0,58517.0,0.63252413]
[1617699435869,0.70207454,58518.0,58517.0,0.63252413]
[1617699436966,0.70207454,58518.0,58517.0,0.68432413]
[1617699437466,0.70207454,58518.0,58517.0,0.63252413]
[1617699440457,1.13307633,58518.0,58517.0,0.63252413]
[1617699440770,1.49634825,58518.0,58517.0,0.27]
[1617699441171,1.49634825,58518.0,58514.0,0.63269227]
[1617699441372,1.98568468,58518.0,58514.0,0.27]
[1617699441573,1.98568468,58518.0,58515.0,0.27]
[1617699441773,1.98568468,58518.0,58514.0,0.27]
[1617699441976,0.78284585,58515.0,58514.0,0.27]
[1617699442175,0.78284585,58515.0,58513.0,0.4572]
[1617699442375,0.78284585,58515.0,58514.0,0.3219]
[1617699442575,0.78284585,58515.0,58514.0,0.27]
[1617699445379,1.07638167,58515.0,58514.0,0.57205276]
[1617699447384,1.07638167,58515.0,58514.0,0.62315276]
[1617699447583,1.07638167,58515.0,58514.0,0.69208276]
[1617699450385,1.07638167,58515.0,58514.0,0.74298276]
[1617699450888,1.07638167,58515.0,58514.0,0.69208276]
[1617699451789,1.07638167,58515.0,58514.0,0.74268276]
[1617699451990,1.07638167,58515.0,58514.0,0.69208276]
[1617699453189,1.07638167,58515.0,58514.0,0.74388276]
[1617699453390,1.07638167,58515.0,58514.0,0.69208276]
[1617699454491,1.07638167,58515.0,58514.0,0.57205276]
[1617699455592,1.07638167,58515.0,58514.0,0.71073276]
[1617699458992,1.07638167,58515.0,58514.0,0.62265276]
[1617699459193,1.07638167,58515.0,58514.0,0.57205276]
[1617699460094,1.07638167,58515.0,58514.0,0.27]
[1617699461893,1.07638167,58515.0,58514.0,0.38568]
[1617699464303,1.07638167,58515.0,58514.0,0.27]
[1617699464801,1.07638167,58515.0,58514.0,0.3219]
[1617699465005,1.07638167,58515.0,58514.0,0.27]
[1617699467502,1.07638167,58515.0,58514.0,0.57204276]
[1617699470623,1.07638167,58515.0,58514.0,0.93454803]
[1617699470625,0.64582624,58515.0,58514.0,0.93454803]
[1617699470855,0.64582624,58515.0,58514.0,3.42824803]
[1617699471013,0.88800825,58515.0,58514.0,3.42824803]
[1617699471606,0.64582624,58515.0,58514.0,3.42824803]
[1617699475310,0.64582624,58515.0,58514.0,0.93454803]
[1617699477917,1.07760359,58515.0,58514.0,0.93454803]
[1617699478319,1.31980388,58515.0,58514.0,0.93454803]
[1617699478819,1.31980388,58515.0,58514.0,0.57204276]
[1617699478820,1.07760359,58515.0,58514.0,0.57204276]
[1617699479143,1.31980431,58515.0,58514.0,0.57204276]
[1617699479519,1.07760359,58515.0,58514.0,0.57204276]
[1617699481924,0.10725655,58518.0,58514.0,0.27]
[1617699482627,1.07895494,58515.0,58514.0,0.57212768]
[1617699483350,1.07895494,58515.0,58514.0,0.27]
[1617699485128,4.64995494,58515.0,58514.0,0.27]
[1617699485732,5.25547234,58515.0,58514.0,0.27]
[1617699491241,5.25547234,58515.0,58514.0,0.5721321]
[1617699491739,5.25547234,58515.0,58514.0,0.27]
[1617699492339,5.7475827,58515.0,58514.0,0.57246303]
[1617699495442,5.8601127,58515.0,58514.0,0.57246303]
[1617699497043,5.7475827,58515.0,58514.0,0.57246303]
[1617699497243,2.1765827,58515.0,58514.0,0.57246303]
[1617699498345,2.1765827,58515.0,58514.0,0.27]
[1617699501149,2.1765827,58515.0,58514.0,0.42215]
[1617699502248,2.1765827,58515.0,58514.0,0.27]
[1617699507758,1.5710653,58515.0,58514.0,3.1134]
[1617699509258,1.5710653,58515.0,58514.0,0.27]
[1617699509760,1.5710653,58515.0,58514.0,3.2506]
[1617699514267,1.5710653,58515.0,58514.0,4.2506]
[1617699514668,1.07895494,58515.0,58514.0,5.11564097]
[1617699515167,0.64739258,58515.0,58514.0,5.55899632]
[1617699515670,0.88958511,58515.0,58514.0,5.55899632]
[1617699516068,0.64739258,58515.0,58514.0,5.55899632]
[1617699518368,0.64739258,58515.0,58514.0,1.37839632]
[1617699518600,3.88669258,58515.0,58514.0,1.37839632]
[1617699519081,4.92737008,58515.0,58514.0,0.93504097]
[1617699519573,4.92737008,58515.0,58514.0,0.57229135]
[1617699520571,5.42158574,58515.0,58514.0,0.57229135]
[1617699522373,5.42158574,58515.0,58514.0,0.27]
[1617699525816,2.18228574,58515.0,58514.0,0.27]
[1617699526073,2.18228574,58515.0,58514.0,3.35665]
[1617699526176,2.18228574,58515.0,58514.0,3.30555]
[1617699526177,1.57675909,58515.0,58514.0,3.30555]
[1617699531479,1.08254343,58515.0,58514.0,3.60774305]
[1617699532281,0.10725655,58518.0,58514.0,3.30555]
[1617699532583,1.08856495,58515.0,58514.0,0.69834497]
[1617699533588,1.69411225,58515.0,58514.0,0.69834497]
[1617699536585,1.69411225,58515.0,58514.0,3.29524497]
[1617699536888,1.58406568,58515.0,58514.0,3.29524497]
[1617699537286,1.58406568,58515.0,58514.0,0.69834497]
[1617699538187,1.58406568,58515.0,58514.0,0.57219497]
[1617699539212,1.58406568,58515.0,58514.0,0.27]
[1617699543595,1.58406568,58515.0,58514.0,0.322]
[1617699543795,1.58406568,58515.0,58514.0,0.27]
[1617699545498,5.10996568,58515.0,58514.0,0.27]
[1617699545696,6.10996568,58515.0,58514.0,0.27]
[1617699545997,6.66430102,58515.0,58514.0,0.27]
[1617699546197,7.80187678,58515.0,58514.0,0.27]
[1617699546496,8.00187678,58515.0,58514.0,0.27]
[1617699546897,7.80187678,58515.0,58514.0,0.27]
[1617699547299,4.27597678,58515.0,58514.0,0.27]
[1617699547901,3.38066774,58515.0,58514.0,0.27]
[1617699549402,6.42216774,58515.0,58514.0,0.27]
[1617699549602,5.42216774,58515.0,58514.0,0.27]
[1617699549903,6.42216774,58515.0,58514.0,0.27]
[1617699550102,7.31753854,58515.0,58514.0,0.27]
[1617699554721,6.31753854,58515.0,58514.0,0.27]
[1617699556412,7.31753854,58515.0,58514.0,0.27]
[1617699558115,6.31753854,58515.0,58514.0,0.27]
[1617699558316,7.31753854,58515.0,58514.0,0.27]
[1617699560018,6.31753854,58515.0,58514.0,0.27]
[1617699560234,3.27603854,58515.0,58514.0,0.27]
[1617699560752,3.27603854,58515.0,58514.0,3.6352]
[1617699560753,1.58406568,58515.0,58514.0,3.6352]
[1617699565729,5.24476568,58515.0,58514.0,0.27]
[1617699566131,5.96183688,58515.0,58514.0,0.27]
[1617699566830,6.96183688,58515.0,58514.0,0.27]
[1617699567531,7.488944,58515.0,58514.0,0.27]
[1617699567830,7.04341863,58515.0,58514.0,0.27]
[1617699568334,6.51631151,58515.0,58514.0,0.27]
[1617699568532,7.51631151,58515.0,58514.0,0.27]
[1617699568734,8.0442359,58515.0,58514.0,0.27]
[1617699570233,9.5442359,58515.0,58514.0,0.27]
[1617699570433,9.5442359,58515.0,58501.0,0.30223515]
[1617699570827,1.5,58513.0,58494.0,0.30227384]
[1617699570956,1.5,58513.0,58489.0,0.30228499]
[1617699570957,3.13412404,58502.0,58489.0,0.30228499]
[1617699571136,1.0,58495.0,58489.0,0.30228499]
[1617699571339,4.77315456,58490.0,58488.0,0.4562]
[1617699571537,4.90896456,58490.0,58488.0,0.4562]
[1617699571742,3.32906655,58490.0,58489.0,0.27]
[1617699572141,3.52906655,58490.0,58489.0,0.27]
[1617699572341,4.90794231,58490.0,58489.0,0.27]
[1617699572542,2.82194231,58490.0,58489.0,0.27]
[1617699572741,2.82194231,58490.0,58489.0,3.5672]
[1617699572742,1.68613231,58490.0,58489.0,3.5672]
[1617699574244,1.43507985,58490.0,58489.0,3.5672]
[1617699574645,1.00089888,58490.0,58489.0,3.5672]
[1617699575544,1.00089888,58490.0,58489.0,0.27]
[1617699575945,5.14099888,58490.0,58489.0,0.27]
[1617699576348,5.57445842,58490.0,58489.0,0.27]
[1617699576545,5.62625842,58490.0,58489.0,0.27]
[1617699576747,5.937952,58490.0,58489.0,0.27]
[1617699577249,6.576512,58490.0,58488.0,0.4562]
[1617699577548,12.776512,58490.0,58478.0,0.3013027]
[1617699577781,0.0505,58489.0,58478.0,0.3013027]
[1617699578019,0.0505,58489.0,58471.0,0.44191063]
[1617699578020,1.7,58488.0,58471.0,0.30134675]
[1617699578165,1.0,58479.0,58471.0,0.30134675]
[1617699578347,1.0,58479.0,58464.0,0.44197523]
[1617699578348,1.0,58479.0,58464.0,0.30137363]
[1617699578349,2.08088027,58479.0,58464.0,0.30137363]
[1617699578556,1.0,58478.0,58476.0,2.6098]
[1617699578748,0.43256721,58477.0,58476.0,2.75328]
[1617699579149,0.64900971,58477.0,58476.0,2.75328]
[1617699579348,0.75626626,58477.0,58476.0,3.02328]
[1617699580149,0.99862102,58477.0,58476.0,3.02328]
[1617699580470,0.75626626,58477.0,58476.0,3.02328]
[1617699580949,0.4022699,58477.0,58476.0,3.02328]
[1617699581471,0.11719928,58477.0,58476.0,3.02328]
[1617699581750,0.11227704,58477.0,58476.0,3.32458126]
[1617699581951,0.11227704,58477.0,58476.0,3.32438126]
[1617699582180,0.10725655,58477.0,58476.0,3.68593898]
[1617699585056,0.10725655,58477.0,58476.0,1.07633898]
[1617699585257,0.10725655,58477.0,58476.0,2.07633898]
[1617699585958,0.10725655,58477.0,58476.0,2.51778527]
[1617699587260,0.10725655,58477.0,58476.0,2.62504182]
[1617699587791,0.10725655,58477.0,58476.0,1.48156182]
[1617699588361,0.10725655,58477.0,58476.0,1.04011553]
[1617699588962,0.10725655,58477.0,58476.0,0.93285898]
[1617699590262,0.10725655,58477.0,58476.0,0.57130126]
[1617699592964,0.10725655,58477.0,58476.0,1.57130126]
[1617699593165,0.10725655,58477.0,58476.0,1.93249417]
[1617699594392,0.10725655,58477.0,58476.0,2.37399358]
[1617699594615,0.10725655,58477.0,58476.0,1.37399358]
[1617699594848,0.10725655,58477.0,58476.0,0.93249417]
[1617699595373,0.10725655,58477.0,58476.0,0.57130126]
[1617699595813,0.10725655,58477.0,58476.0,0.27]
[1617699596269,0.10725655,58477.0,58474.0,0.30106721]
[1617699596498,0.10725655,58477.0,58476.0,0.27]
[1617699596771,0.11225775,58477.0,58475.0,0.27]
[1617699597080,0.11225775,58477.0,58476.0,0.27]
[1617699597506,0.11225775,58477.0,58474.0,0.27]
[1617699597772,0.10725655,58477.0,58476.0,0.27]
[1617699598072,0.10725655,58477.0,58471.0,0.30089272]
[1617699598073,0.10725655,58477.0,58474.0,0.27]
[1617699598074,0.11225391,58477.0,58474.0,0.27]
[1617699598407,0.11225391,58477.0,58472.0,0.27]
[1617699598573,0.00499786,58476.0,58470.0,0.30089985]
[1617699598771,0.00499786,58476.0,58475.0,0.27]
[1617699598971,0.00499786,58476.0,58470.0,0.30089985]
[1617699598972,0.00499786,58476.0,58472.0,0.27]
[1617699599171,0.00499786,58476.0,58471.0,0.27]
[1617699599574,0.00499786,58476.0,58469.0,0.30090227]
[1617699599773,0.00499786,58476.0,58470.0,0.27]
[1617699599973,0.00499786,58476.0,58470.0,0.4278]
[1617699600175,0.11225594,58477.0,58471.0,0.30089383]
[1617699600375,0.11225594,58477.0,58476.0,3.6319]
[1617699600775,0.11225594,58477.0,58476.0,3.9019]
[1617699600975,0.11715584,58477.0,58476.0,3.9019]
[1617699601179,2.61715584,58477.0,58476.0,0.27]
[1617699601386,5.97555584,58477.0,58476.0,0.27]
[1617699601726,6.25962247,58477.0,58471.0,0.27]
[1617699601916,6.40641247,58477.0,58476.0,0.27]
[1617699602121,6.18966412,58477.0,58476.0,0.27]
[1617699602296,1.0,58472.0,58467.0,0.27]
[1617699602577,7.18966412,58477.0,58476.0,0.27]
[1617699602778,1.0,58468.0,58463.0,0.27]
[1617699602979,0.29402245,58468.0,58463.0,0.27]
[1617699603179,0.29402245,58468.0,58462.0,0.4537]
[1617699603383,0.00989627,58464.0,58463.0,0.27]
[1617699603680,1.14096627,58464.0,58463.0,0.27]
[1617699604186,4.41866627,58464.0,58463.0,0.27]
[1617699604584,4.70291584,58464.0,58463.0,0.27]
[1617699605282,1.13605884,58464.0,58463.0,0.27]
[1617699605482,1.24331539,58464.0,58463.0,0.27]
[1617699608486,1.23832655,58464.0,58463.0,0.27]
[1617699608808,1.24820826,58464.0,58463.0,0.27]
[1617699609889,2.74820826,58464.0,58463.0,0.27]
[1617699610186,3.03187953,58464.0,58463.0,0.27]
[1617699610588,6.84918021,58464.0,58463.0,0.27]
[1617699610787,6.84918021,58464.0,58462.0,0.4537]
[1617699611391,0.88752301,58463.0,58462.0,0.4537]
[1617699611590,3.38752301,58463.0,58462.0,0.4537]
[1617699611928,9.01726476,58463.0,58436.0,0.30043166]
[1617699612092,3.2237,58439.0,58436.0,0.30043166]
[1617699612292,1.0,58437.0,58430.0,0.30043865]
[1617699612692,1.0,58437.0,58429.0,0.4579]
[1617699612693,1.0,58437.0,58429.0,0.75827537]
[1617699612893,1.0,58439.0,58432.0,0.27]
[1617699613294,1.0,58440.0,58432.0,0.27]
[1617699613495,0.10725655,58433.0,58432.0,0.27]
[1617699614097,1.24347655,58433.0,58432.0,0.27]
[1617699614397,0.24347655,58433.0,58432.0,0.27]
[1617699615498,1.24347655,58433.0,58430.0,0.27]
[1617699615796,1.17347655,58433.0,58432.0,0.27]
[1617699616197,1.0,58431.0,58430.0,0.27]
[1617699616397,1.0,58431.0,58429.0,0.4579]
[1617699616597,1.17347655,58433.0,58429.0,0.4579]
[1617699616798,0.17347655,58433.0,58430.0,0.27]
[1617699617200,1.0,58431.0,58430.0,0.27]
[1617699626505,0.03725655,58433.0,58430.0,0.27]
[1617699627505,1.0,58431.0,58430.0,0.27]
[1617699628004,2.5,58431.0,58430.0,0.27]
[1617699628509,5.6259,58431.0,58430.0,0.27]
[1617699629708,4.6259,58431.0,58430.0,0.27]
[1617699630015,5.6259,58431.0,58430.0,0.27]
[1617699634112,2.5,58431.0,58430.0,0.27]
[1617699636214,1.0,58431.0,58430.0,0.27]
[1617699636615,1.0,58431.0,58430.0,3.0395]
[1617699637115,1.03725655,58433.0,58430.0,3.0395]
[1617699637416,0.03725655,58433.0,58430.0,0.27]
[1617699637616,1.0,58431.0,58430.0,0.27]
[1617699638716,0.03725655,58433.0,58430.0,0.38927]
[1617699640519,1.0,58431.0,58430.0,0.38927]
[1617699640817,1.0,58431.0,58430.0,0.27]
[1617699641517,0.03725655,58433.0,58430.0,0.27]
[1617699641717,0.03725655,58433.0,58430.0,0.42791]
[1617699644022,1.0,58431.0,58430.0,0.42791]
[1617699644223,0.03725655,58433.0,58430.0,0.42791]
[1617699645124,1.0,58431.0,58430.0,0.42791]
[1617699645524,0.03725655,58433.0,58430.0,0.42791]
[1617699646326,1.0,58432.0,58430.0,0.42791]
[1617699646526,1.0,58431.0,58430.0,0.42791]
[1617699647629,1.0,58431.0,58430.0,0.27]
[1617699650533,0.03725655,58433.0,58430.0,0.27]
[1617699650733,1.0,58431.0,58430.0,0.27]
[1617699651034,1.0,58431.0,58430.0,0.40046]
[1617699656544,1.0,58432.0,58430.0,0.40046]
[1617699657444,0.03725655,58433.0,58430.0,0.40046]
[1617699657846,0.2937255,58431.0,58430.0,0.40046]
[1617699661552,1.2937255,58431.0,58430.0,0.40046]
[1617699662751,0.2937255,58431.0,58430.0,4.01326]
[1617699665358,1.08163937,58431.0,58430.0,4.3157621]
[1617699668558,0.64829659,58431.0,58430.0,4.67874483]
[1617699668958,1.08191947,58431.0,58430.0,4.67874483]
[1617699669960,0.64829659,58431.0,58430.0,4.67874483]
[1617699672564,1.08241559,58431.0,58430.0,4.67874483]
[1617699672763,1.08241559,58431.0,58430.0,1.06594483]
[1617699672963,1.08241559,58431.0,58430.0,1.26594483]
[1617699673264,0.64829659,58431.0,58430.0,1.26594483]
[1617699673464,0.64829659,58431.0,58430.0,1.70954218]
[1617699673465,0.2937255,58431.0,58430.0,1.70954218]
[1617699675168,0.00997801,58431.0,58430.0,1.70954218]
[1617699675565,0.00997801,58431.0,58430.0,5.43234218]
[1617699675767,0.00997801,58431.0,58430.0,5.38174218]
[1617699675768,0.00503338,58431.0,58430.0,5.38174218]
[1617699676065,0.00503338,58431.0,58430.0,5.47267806]
[1617699676366,0.00503338,58431.0,58430.0,6.47267806]
[1617699676566,0.03725655,58433.0,58430.0,6.47267806]
[1617699677068,0.03365655,58433.0,58432.0,1.1077499]
[1617699677271,0.03365655,58433.0,58432.0,2.1077499]
[1617699677766,0.03365655,58433.0,58432.0,2.16836974]
[1617699677967,0.03365655,58433.0,58432.0,1.16836974]
[1617699678367,0.03365655,58433.0,58432.0,2.1077499]
[1617699678581,0.03365655,58433.0,58432.0,2.1592499]
[1617699679169,0.03365655,58433.0,58432.0,2.16836948]
[1617699679371,0.03365655,58433.0,58432.0,1.16836948]
[1617699679791,0.03365655,58433.0,58432.0,1.1077499]
[1617699681006,0.03365655,58433.0,58432.0,2.1077499]
[1617699681244,1.03365655,58433.0,58432.0,1.1077499]
[1617699681371,5.31805655,58433.0,58432.0,1.1077499]
[1617699681592,5.31805655,58433.0,58432.0,0.36274931]
[1617699681593,5.96927022,58433.0,58432.0,0.36274931]
[1617699682120,6.50816621,58433.0,58429.0,0.4579]
[1617699682520,7.00066033,58433.0,58429.0,0.4579]
[1617699682775,2.57551392,58430.0,58429.0,0.4579]
[1617699682974,4.07551392,58430.0,58429.0,0.4579]
[1617699683274,4.31807589,58430.0,58429.0,0.4579]
[1617699683474,2.81807589,58430.0,58429.0,0.4065]
[1617699683677,2.68959501,58430.0,58429.0,0.4065]
[1617699685779,1.68959501,58430.0,58429.0,0.4065]
[1617699686778,1.08319043,58430.0,58429.0,0.4065]
[1617699687081,1.3257338,58430.0,58429.0,0.4065]
[1617699687780,1.08319043,58430.0,58429.0,0.4065]
[1617699688180,1.32573813,58430.0,58429.0,0.4065]
[1617699688480,1.08319043,58430.0,58429.0,0.4065]
[1617699690582,2.58319043,58430.0,58429.0,0.4065]
[1617699690781,2.72297043,58430.0,58429.0,0.4065]
[1617699690981,3.72297043,58430.0,58429.0,0.4065]
[1617699691281,4.82157352,58430.0,58429.0,0.4065]
[1617699693984,4.82157352,58430.0,58429.0,0.3896]
[1617699694385,3.82157352,58430.0,58429.0,0.3896]
[1617699694685,4.82157352,58430.0,58429.0,0.3896]
[1617699700989,3.32157352,58430.0,58429.0,0.3896]
[1617699701188,3.32157352,58430.0,58429.0,0.49711]
[1617699701792,2.95771988,58430.0,58429.0,0.49711]
[1617699702090,1.32575952,58430.0,58429.0,0.49711]
[1617699702510,1.08319043,58430.0,58429.0,0.49711]
[1617699703496,1.32574322,58430.0,58429.0,0.49711]
[1617699703903,1.08319043,58430.0,58429.0,0.49711]
[1617699705303,0.64993395,58430.0,58429.0,3.21731]
[1617699705799,1.08230412,58430.0,58429.0,3.21731]
[1617699706408,1.08230412,58430.0,58429.0,0.49711]
[1617699706409,2.08230412,58430.0,58429.0,0.49711]
[1617699706602,2.08230412,58430.0,58429.0,0.3896]
[1617699707502,2.3248636,58430.0,58429.0,0.3896]
[1617699707907,2.68870737,58430.0,58429.0,0.3896]
[1617699712008,1.68870737,58430.0,58429.0,0.3896]
[1617699712208,1.68870737,58430.0,58429.0,0.54574]
[1617699713012,1.08230412,58430.0,58429.0,0.74574]
[1617699713212,1.08230412,58430.0,58429.0,0.54574]
[1617699713412,0.89249297,58430.0,58429.0,0.54574]
[1617699714413,0.64993395,58430.0,58429.0,0.54574]
[1617699714912,0.89248515,58430.0,58429.0,0.54574]
[1617699715213,0.64993395,58430.0,58429.0,0.54574]
[1617699715616,0.89248201,58430.0,58429.0,0.54574]
[1617699715915,0.64993395,58430.0,58429.0,0.54574]
[1617699716114,0.64993395,58430.0,58429.0,0.74574]
[1617699716718,0.64993395,58430.0,58429.0,1.04758811]
[1617699716719,0.29543347,58430.0,58429.0,1.04758811]
[1617699717133,0.00503145,58430.0,58429.0,2.40977933]
[1617699717519,0.00503145,58430.0,58429.0,5.81027933]
[1617699717722,0.00996424,58431.0,58429.0,5.81027933]
[1617699717723,0.3297226,58433.0,58429.0,5.81027933]
[1617699717726,0.03869039,58433.0,58429.0,5.81027933]
[1617699718019,0.03365655,58433.0,58431.0,0.10725655]
[1617699718418,0.03365655,58433.0,58432.0,1.0]
[1617699718632,0.03365655,58433.0,58432.0,1.72459604]
[1617699719029,0.03365655,58433.0,58432.0,2.16723421]
[1617699719235,0.03365655,58433.0,58432.0,5.01653421]
[1617699719834,0.03365655,58433.0,58432.0,4.01653421]
[1617699720045,0.03365655,58433.0,58432.0,3.90747399]
[1617699720428,0.03365655,58433.0,58432.0,3.37389604]
[1617699721024,0.03365655,58433.0,58432.0,3.50120604]
[1617699721624,0.03365655,58433.0,58432.0,4.50120604]
[1617699721825,0.03365655,58433.0,58432.0,4.70120604]
[1617699722024,0.00503643,58438.0,58432.0,4.70120604]
[1617699722325,0.29635959,58441.0,58437.0,0.30725655]
[1617699722326,0.00503866,58441.0,58437.0,0.30725655]
[1617699722526,0.00503866,58441.0,58440.0,3.0041]
[1617699722727,0.00503866,58441.0,58440.0,3.30564813]
[1617699723130,0.00998041,58441.0,58440.0,3.30564813]
[1617699723629,0.00504075,58441.0,58440.0,3.30564813]
[1617699724128,0.00998739,58441.0,58440.0,3.30564813]
[1617699724428,0.00998739,58441.0,58440.0,3.0041]
[1617699724828,0.10725655,58442.0,58440.0,3.0041]
[1617699724829,0.11229829,58442.0,58440.0,3.30547652]
[1617699725964,0.11229829,58442.0,58441.0,1.30137957]
[1617699726334,0.10725655,58442.0,58441.0,1.30137957]
[1617699726734,0.10725655,58442.0,58441.0,0.66301743]
[1617699727133,0.08425655,58442.0,58441.0,0.66301743]
[1617699727634,0.08425655,58442.0,58441.0,0.30137957]
[1617699727969,0.08095655,58442.0,58441.0,0.30137957]
[1617699728279,0.05415655,58442.0,58441.0,0.30137957]
[1617699728940,0.05415655,58442.0,58441.0,0.66301418]
[1617699729236,0.05415655,58442.0,58441.0,1.66301418]
[1617699732144,0.05415655,58442.0,58441.0,1.86301418]
[1617699732543,0.00506562,58447.0,58441.0,1.86301418]
[1617699732778,0.01509462,58448.0,58441.0,1.86301418]
[1617699732952,0.01003525,58449.0,58446.0,1.0]
[1617699733143,0.29816541,58450.0,58447.0,0.2]
[1617699733144,0.29630066,58450.0,58447.0,0.2]
[1617699733344,4.169e-05,58453.0,58449.0,3.3928]
[1617699733545,4.169e-05,58453.0,58450.0,0.2]
[1617699733744,0.35808995,58459.0,58450.0,0.2]
[1617699733944,0.35808995,58459.0,58453.0,0.2]
[1617699734144,0.35734595,58465.0,58453.0,1.2]
[1617699734445,0.35734595,58465.0,58458.0,1.10725655]
[1617699734645,0.3574937,58466.0,58458.0,1.21387655]
[1617699734857,0.3574937,58466.0,58458.0,0.21387655]
[1617699735057,0.3574937,58466.0,58465.0,4.3438]
[1617699735664,0.35776864,58476.0,58465.0,4.5438]
[1617699736116,0.35776864,58476.0,58465.0,3.5438]
[1617699736345,0.35805717,58480.0,58476.0,0.2]
[1617699736745,0.35823488,58483.0,58479.0,1.0]
[1617699737145,0.35823488,58483.0,58476.0,0.2]
[1617699737146,0.35823488,58483.0,58477.0,1.0]
[1617699737345,0.35823488,58483.0,58480.0,1.0]
[1617699737745,0.35823488,58483.0,58476.0,0.2]
[1617699737945,0.48643907,58485.0,58482.0,1.0]
[1617699738482,0.10725655,58483.0,58476.0,0.2]
[1617699738846,0.10725655,58483.0,58482.0,1.2]
[1617699740449,0.10725655,58483.0,58482.0,1.0]
[1617699742087,0.10725655,58483.0,58475.0,0.11827]
[1617699742253,0.10725655,58476.0,58475.0,0.11827]
[1617699742451,0.10725655,58476.0,58474.0,0.2]
[1617699742651,0.10725655,58476.0,58475.0,1.0]
[1617699742852,0.10725655,58476.0,58475.0,1.052]
[1617699743052,0.35846232,58489.0,58475.0,1.10914]
[1617699743353,0.35865014,58492.0,58475.0,1.10914]
[1617699743654,0.35865014,58492.0,58488.0,1.0]
[1617699743852,0.35861352,58491.0,58488.0,1.0]
[1617699744052,0.35861352,58491.0,58488.0,1.11285]
[1617699744254,0.35863091,58492.0,58490.0,0.10725655]
[1617699745655,0.35840716,58491.0,58490.0,0.10725655]
[1617699746057,0.35676409,58500.0,58490.0,0.10725655]
[1617699746357,0.10725655,58491.0,58490.0,0.10725655]
[1617699748359,0.10725655,58491.0,58490.0,1.10725655]
[1617699748758,0.10725655,58491.0,58490.0,0.10725655]
[1617699748961,0.10725655,58491.0,58490.0,1.10725655]
[1617699749458,0.10725655,58491.0,58490.0,1.37725655]
[1617699749859,0.10725655,58491.0,58490.0,1.57725655]
[1617699750271,0.10725655,58491.0,58490.0,4.68295655]
[1617699754067,0.35679163,58506.0,58490.0,4.68295655]
[1617699754266,0.35675981,58505.0,58490.0,4.68295655]
[1617699754464,0.1281,58511.0,58502.0,0.10725655]
[1617699754664,0.1281,58511.0,58502.0,0.23803655]
[1617699754963,0.1281,58511.0,58503.0,0.27]
[1617699755365,0.1281,58511.0,58506.0,1.0]
[1617699755765,0.1281,58511.0,58507.0,0.27]
[1617699755964,0.1281,58511.0,58509.0,2.8535]
[1617699756364,0.10725655,58510.0,58509.0,2.8535]
[1617699756666,0.10725655,58510.0,58509.0,3.1235]
[1617699757364,0.1281,58511.0,58509.0,3.1235]